bitfinex-derivatives/quotes_BNBF0:USTF0_20251027
["timestamp","ask_amount","ask_price","bid_price","bid_amount"]
[1761537142020,2.1424741,1155.4,1153.8,1.284]
[1761537142524,2.1424741,1155.5,1153.8,1.284]
[1761537143526,2.1424741,1155.6,1153.8,1.284]
[1761537145124,2.1424741,1155.9,1153.8,1.284]
[1761537146625,2.1424741,1155.8,1153.8,1.284]
[1761537148330,2.1424741,1155.7,1153.8,1.284]
[1761537149430,2.1424741,1156.0,1153.8,1.284]
[1761537150927,2.1424741,1155.7,1153.8,1.284]
[1761537152427,0.1506836,1156.3,1153.8,1.284]
[1761537152428,2.1424741,1155.8,1153.8,1.284]
[1761537153030,5.1419378,1156.1,1153.8,1.284]
[1761537153333,2.1424741,1156.1,1153.8,1.284]
[1761537157136,2.1424741,1156.2,1153.8,1.284]
[1761537158241,2.2931577,1156.3,1153.8,1.284]
[1761537159341,2.2931577,1156.3,1153.7,1.257]
[1761537161345,2.1424741,1156.2,1153.7,1.257]
[1761537162344,2.2931577,1156.3,1153.7,1.257]
[1761537162745,2.1424741,1155.8,1153.7,1.257]
[1761537163245,2.1424741,1155.6,1153.7,1.257]
[1761537163946,2.1424741,1155.8,1153.7,1.257]
[1761537165049,2.1424741,1155.5,1153.7,1.257]
[1761537165949,2.1424741,1155.6,1153.7,1.257]
[1761537166445,2.1424741,1155.5,1153.7,1.257]
[1761537166944,2.1424741,1155.7,1153.7,1.257]
[1761537170653,5.1419378,1156.1,1153.7,1.257]
[1761537170953,2.1424741,1156.1,1153.7,1.257]
[1761537171651,2.1424741,1155.6,1153.7,1.257]
[1761537172352,2.1424741,1156.0,1153.7,1.257]
[1761537173153,2.1424741,1155.9,1153.7,1.257]
[1761537174757,2.1424741,1156.0,1153.7,1.257]
[1761537176962,2.1424741,1155.6,1153.7,1.257]
[1761537178362,2.1424741,1155.7,1153.7,1.257]
[1761537178862,2.9994637,1156.0,1153.7,1.257]
[1761537179467,2.1424741,1155.9,1153.7,1.257]
[1761537180468,2.1424741,1156.1,1153.7,1.257]
[1761537180871,2.1424741,1156.1,1153.6,1.639]
[1761537181467,0.1506836,1156.3,1153.6,1.639]
[1761537182571,0.1506836,1156.3,1153.7,1.785]
[1761537187373,2.2931577,1156.3,1153.7,1.785]
[1761537189275,2.1424741,1156.2,1153.7,1.785]
[1761537190375,2.1424741,1156.1,1153.7,1.785]
[1761537191474,2.1424741,1155.8,1153.7,1.785]
[1761537194577,2.1424741,1156.1,1153.7,1.785]
[1761537196180,2.1424741,1156.2,1153.7,1.785]
[1761537197185,0.1506836,1156.3,1153.7,1.785]
[1761537197186,2.1424741,1156.1,1153.7,1.785]
[1761537198283,2.2931577,1156.3,1153.7,1.785]
[1761537200184,2.1424741,1155.8,1153.7,1.785]
[1761537200883,2.1424741,1155.5,1153.7,1.785]
[1761537207693,2.1424741,1155.6,1153.7,1.785]
[1761537208689,2.1424741,1155.5,1153.7,1.785]
[1761537212193,2.1424741,1155.3,1153.7,1.785]
[1761537212794,2.1424741,1155.2,1153.7,1.785]
[1761537213391,2.1424741,1155.0,1153.7,1.785]
[1761537213891,4.2849482,1156.0,1153.7,1.785]
[1761537214796,2.1424741,1154.7,1153.7,1.785]
[1761537218697,2.1424741,1154.6,1153.7,1.785]
[1761537220196,2.1424741,1154.8,1153.7,1.785]
[1761537221303,2.1424741,1154.9,1153.7,1.785]
[1761537221703,2.1424741,1155.0,1153.7,1.785]
[1761537223606,2.1424741,1155.0,1153.4,1.398]
[1761537224306,2.1424741,1155.4,1153.4,1.398]
[1761537226106,2.1424741,1155.4,1153.5,1.653]
[1761537228509,2.1424741,1155.7,1153.5,1.653]
[1761537229609,2.1424741,1155.6,1153.5,1.653]
[1761537231112,2.1424741,1155.5,1153.5,1.653]
[1761537234214,2.1424741,1155.2,1153.5,1.653]
[1761537234711,2.9994637,1155.7,1153.5,1.653]
[1761537235614,2.1424741,1156.1,1153.5,1.653]
[1761537237421,2.1424741,1156.2,1153.5,1.653]
[1761537237819,2.1424741,1156.1,1153.5,1.653]
[1761537238121,2.1424741,1156.1,1153.4,1.398]
[1761537238321,2.1424741,1156.0,1153.4,1.398]
[1761537239822,2.1424741,1156.0,1153.5,1.615]
[1761537242021,2.1424741,1156.1,1153.5,1.615]
[1761537244623,2.1424741,1155.2,1153.5,1.615]
[1761537245123,2.1424741,1155.0,1153.5,1.615]
[1761537248325,2.1424741,1154.9,1153.5,1.615]
[1761537249627,2.1424741,1155.2,1153.5,1.615]
[1761537249825,0.15087763,1154.6,1153.5,1.615]
[1761537250126,2.1424741,1155.1,1153.5,1.615]
[1761537250429,0.15086324,1154.4,1153.5,1.615]
[1761537250728,2.1424741,1155.1,1153.5,1.615]
[1761537250926,0.15086651,1154.2,1153.5,1.615]
[1761537251425,0.15086651,1154.1,1153.5,1.615]
[1761537259838,0.15086651,1154.1,1153.4,1.398]
[1761537261733,0.15086651,1154.1,1153.5,1.838]
[1761537266536,0.15086651,1154.1,1153.5,3.551]
[1761537292854,0.15086651,1154.1,1153.5,1.713]
[1761537294356,0.15086651,1154.1,1153.6,1.616]
[1761537306169,0.15086651,1154.1,1153.6,2.984]
[1761537340394,0.15086651,1154.1,1153.6,1.368]
[1761537344296,0.15086651,1154.1,1153.5,1.488]
[1761537362309,2.1424741,1155.2,1153.5,1.488]
[1761537362711,0.15083839,1154.3,1153.5,1.488]
[1761537362911,2.1424741,1155.2,1153.5,1.488]
[1761537363208,0.15085016,1154.3,1153.5,1.488]
[1761537363414,2.1424741,1155.3,1153.5,1.488]
[1761537363809,0.15085016,1154.3,1153.5,1.488]
[1761537364012,2.1424741,1155.3,1153.5,1.488]
[1761537364318,0.15084231,1154.4,1153.5,1.488]
[1761537364612,2.1424741,1155.3,1153.5,1.488]
[1761537364811,0.15084231,1154.4,1153.5,1.488]
[1761537365312,2.1424741,1155.4,1153.5,1.488]
[1761537365511,0.15083904,1154.4,1153.5,1.488]
[1761537365710,2.1424741,1155.5,1153.5,1.488]
[1761537366011,0.15083577,1154.4,1153.5,1.488]
[1761537366310,2.1424741,1155.5,1153.5,1.488]
[1761537366610,0.15083577,1154.4,1153.5,1.488]
[1761537367017,2.1424741,1155.5,1153.5,1.488]
[1761537367218,0.15083577,1154.4,1153.5,1.488]
[1761537367416,2.1424741,1155.5,1153.5,1.488]
[1761537367718,0.15083577,1154.4,1153.5,1.488]
[1761537368015,2.1424741,1155.5,1153.5,1.488]
[1761537368217,0.15083577,1154.4,1153.5,1.488]
[1761537368518,2.1424741,1155.6,1153.5,1.488]
[1761537368919,0.15083708,1154.3,1153.5,1.488]
[1761537369216,2.1424741,1155.6,1153.5,1.488]
[1761537369417,0.15083708,1154.3,1153.5,1.488]
[1761537369615,2.1424741,1155.6,1153.5,1.488]
[1761537370522,0.15083708,1155.1,1153.5,1.488]
[1761537379425,0.15083708,1155.1,1153.3,1.494]
[1761537381525,2.1424741,1154.9,1153.4,1.218]
[1761537382126,2.1424741,1154.8,1153.4,1.218]
[1761537382627,2.1424741,1154.7,1153.4,1.218]
[1761537385836,2.1424741,1154.5,1153.4,1.218]
[1761537387332,2.1424741,1154.6,1153.4,1.218]
[1761537388437,2.1424741,1154.5,1153.4,1.218]
[1761537389338,2.1424741,1154.6,1153.4,1.218]
[1761537389836,2.1424741,1154.5,1153.4,1.218]
[1761537390539,2.1424741,1154.6,1153.4,1.218]
[1761537391439,2.1424741,1154.7,1153.4,1.218]
[1761537392538,2.1424741,1154.9,1153.4,1.218]
[1761537395039,2.1424741,1155.0,1153.4,1.218]
[1761537396241,2.29331118,1155.1,1153.4,1.218]
[1761537398150,2.1424741,1154.9,1153.4,1.218]
[1761537399248,2.1424741,1155.0,1153.4,1.218]
[1761537400045,0.15083708,1155.1,1153.1,1.552]
[1761537402446,0.15083708,1155.1,1153.2,1.21]
[1761537417168,2.29331118,1155.1,1153.2,1.21]
[1761537418165,2.1424741,1154.7,1153.2,1.21]
[1761537420771,2.1424741,1154.6,1153.2,1.21]
[1761537421367,2.1424741,1154.7,1153.2,1.21]
[1761537423469,2.1424741,1154.6,1153.2,1.21]
[1761537424073,2.1424741,1154.7,1153.2,1.21]
[1761537425475,3.15030078,1155.1,1153.2,1.21]
[1761537426073,2.1424741,1154.6,1153.2,1.21]
[1761537426576,2.1424741,1154.7,1153.2,1.21]
[1761537429675,2.1424741,1154.3,1153.2,1.21]
[1761537431475,2.1424741,1154.6,1153.2,1.21]
[1761537432880,2.1424741,1154.9,1153.2,1.21]
[1761537437776,2.1424741,1154.8,1153.2,1.21]
[1761537438177,2.1424741,1154.7,1153.2,1.21]
[1761537438681,2.1424741,1154.6,1153.1,1.619]
[1761537440878,2.1424741,1154.7,1153.1,1.619]
[1761537442181,2.1424741,1154.4,1153.1,1.619]
[1761537444478,2.9994637,1154.9,1153.1,1.619]
[1761537444778,0.15095944,1154.1,1153.1,1.619]
[1761537444983,2.1424741,1155.3,1153.1,1.619]
[1761537445884,2.1424741,1155.2,1153.1,1.619]
[1761537446379,0.15092998,1154.8,1153.1,1.619]
[1761537449987,2.29340408,1154.8,1153.1,1.619]
[1761537451084,2.1424741,1154.7,1153.1,1.619]
[1761537451584,2.29340408,1154.8,1153.1,1.619]
[1761537452588,2.1424741,1154.2,1153.1,1.619]
[1761537453285,2.1424741,1154.3,1153.1,1.619]
[1761537455694,2.1424741,1154.7,1153.1,1.619]
[1761537456693,0.15092998,1154.8,1153.1,1.619]
[1761537460799,2.1424741,1154.5,1153.1,1.619]
[1761537463801,2.1424741,1154.5,1153.0,1.294]
[1761537464997,2.1424741,1154.4,1153.0,1.294]
[1761537465401,2.1424741,1154.3,1153.0,1.294]
[1761537466500,2.1424741,1154.1,1153.0,1.294]
[1761537467001,2.1424741,1154.0,1153.0,1.294]
[1761537467201,2.1424741,1154.0,1152.6,1.75]
[1761537469100,2.9994637,1154.4,1152.6,1.75]
[1761537469700,2.1424741,1154.4,1152.7,1.876]
[1761537471599,2.1424741,1154.6,1152.7,1.876]
[1761537473205,2.1424741,1154.4,1152.7,1.876]
[1761537473801,2.1424741,1154.6,1152.7,1.876]
[1761537475906,2.1424741,1154.7,1152.7,1.876]
[1761537476509,2.29340408,1154.8,1152.7,1.876]
[1761537478411,0.15092998,1154.8,1152.7,1.876]
[1761537479411,2.1424741,1154.4,1152.7,1.876]
[1761537481613,2.1424741,1154.3,1152.7,1.876]
[1761537482117,0.15092998,1154.8,1152.7,1.876]
[1761537489322,2.1424741,1154.6,1152.7,1.876]
[1761537495521,2.1424741,1154.5,1152.7,1.876]
[1761537496224,2.1424741,1154.7,1152.7,1.876]
[1761537497323,2.1424741,1154.6,1152.7,1.876]
[1761537497728,2.1424741,1154.1,1152.7,1.876]
[1761537498725,2.1424741,1154.0,1152.7,1.876]
[1761537499830,2.1424741,1153.8,1152.6,1.75]
[1761537500229,2.1424741,1153.9,1152.6,1.75]
[1761537500430,2.1424741,1154.0,1152.6,1.75]
[1761537501531,2.1424741,1154.0,1152.7,1.398]
[1761537501929,2.1424741,1154.3,1152.7,1.398]
[1761537502826,2.29340408,1154.8,1152.7,1.398]
[1761537504029,0.15092998,1154.8,1152.7,1.398]
[1761537510532,0.15092998,1154.8,1152.8,1.579]
[1761537513934,2.1424741,1154.7,1152.8,1.579]
[1761537514335,2.1424741,1154.6,1152.8,1.579]
[1761537514935,2.1424741,1154.7,1152.8,1.579]
[1761537515937,2.1424741,1154.6,1152.8,1.579]
[1761537523342,2.29340408,1154.8,1152.8,1.579]
[1761537523841,0.15092998,1154.8,1152.8,1.579]
[1761537534247,2.9994637,1154.3,1152.8,1.579]
[1761537534542,2.1424741,1153.8,1152.8,1.579]
[1761537536042,2.9994637,1154.2,1152.8,1.579]
[1761537536441,0.15092998,1154.8,1152.8,1.579]
[1761537546959,2.1424741,1154.6,1152.8,1.579]
[1761537547661,2.1424741,1154.5,1152.8,1.579]
[1761537548060,2.1424741,1154.6,1152.8,1.579]
[1761537548562,0.15092998,1154.8,1152.8,1.579]
[1761537550557,0.15092998,1154.8,1152.3,1.289]
[1761537552064,2.1424741,1154.1,1152.3,1.289]
[1761537552662,2.1424741,1154.2,1152.3,1.289]
[1761537554366,2.1424741,1154.3,1152.3,1.289]
[1761537554662,3.15039368,1154.8,1152.3,1.289]
[1761537555166,0.15092998,1154.8,1152.3,1.289]
[1761537555665,2.1424741,1153.8,1152.3,1.289]
[1761537556367,2.1424741,1154.3,1152.3,1.289]
[1761537558269,2.9994637,1154.0,1152.3,1.289]
[1761537558567,2.1424741,1153.6,1152.3,1.289]
[1761537558963,2.9994637,1154.0,1152.3,1.289]
[1761537559464,2.1424741,1154.2,1152.3,1.289]
[1761537559865,2.1424741,1154.6,1152.3,1.289]
[1761537560465,2.1424741,1154.7,1152.3,1.289]
[1761537560965,2.1424741,1154.6,1152.3,1.289]
[1761537561569,2.1424741,1154.7,1152.3,1.289]
[1761537561971,0.15092998,1154.8,1152.3,1.289]
[1761537565871,2.1424741,1154.6,1152.3,1.289]
[1761537567269,2.1424741,1154.6,1151.6,1.813]
[1761537568869,2.1424741,1154.6,1151.7,1.637]
[1761537569472,2.1424741,1154.0,1151.7,1.637]
[1761537570171,2.1424741,1154.6,1151.7,1.637]
[1761537572571,2.1424741,1154.5,1151.7,1.637]
[1761537573174,2.1424741,1154.6,1151.7,1.637]
[1761537573672,2.1424741,1154.5,1151.7,1.637]
[1761537574673,2.1424741,1154.6,1151.7,1.637]
[1761537575674,2.1424741,1154.5,1151.7,1.637]
[1761537576773,2.1424741,1154.6,1151.7,1.637]
[1761537577778,2.1424741,1154.2,1151.7,1.637]
[1761537578575,2.1424741,1153.9,1151.7,1.637]
[1761537579078,2.1424741,1154.0,1151.7,1.637]
[1761537581280,2.1424741,1153.9,1151.7,1.637]
[1761537582381,2.1424741,1153.8,1151.7,1.637]
[1761537584384,2.1424741,1153.7,1151.7,1.637]
[1761537585585,2.1424741,1153.6,1151.7,1.637]
[1761537586490,2.1424741,1153.5,1151.7,1.637]
[1761537588588,2.1424741,1153.4,1151.7,1.637]
[1761537589286,2.9994637,1153.8,1151.7,1.637]
[1761537589787,2.1424741,1154.3,1151.7,1.637]
[1761537592190,2.1424741,1154.2,1151.7,1.637]
[1761537597092,2.1424741,1153.8,1151.7,1.637]
[1761537598597,2.1424741,1154.0,1151.7,1.637]
[1761537598993,2.1424741,1153.7,1151.7,1.637]
[1761537600696,4.2849482,1154.7,1151.8,1.32]
[1761537601299,0.15092998,1154.8,1151.8,1.32]
[1761537601497,2.1424741,1154.2,1151.8,1.32]
[1761537602099,2.1424741,1154.3,1151.8,1.32]
[1761537602597,2.1424741,1154.2,1151.8,1.32]
[1761537603198,2.1424741,1153.8,1151.8,1.32]
[1761537603396,2.1424741,1154.0,1151.8,1.32]
[1761537603901,5.1419378,1154.3,1151.8,1.32]
[1761537604401,2.1424741,1154.3,1151.8,1.32]
[1761537604696,2.1424741,1154.3,1151.9,1.229]
[1761537605601,2.1424741,1154.4,1151.9,1.229]
[1761537606500,2.1424741,1154.6,1151.9,1.229]
[1761537607005,2.1424741,1154.7,1151.9,1.229]
[1761537607602,2.1424741,1154.4,1152.0,0.56406466]
[1761537607901,2.1424741,1154.4,1151.9,1.229]
[1761537608205,2.1424741,1154.4,1152.0,0.5640615]
[1761537608401,2.1424741,1154.4,1152.1,0.5640615]
[1761537608605,2.1424741,1154.5,1151.9,1.229]
[1761537608905,2.1424741,1154.5,1152.0,0.56375009]
[1761537609105,2.1424741,1154.6,1152.1,0.56375009]
[1761537609405,2.1424741,1154.6,1151.9,1.229]
[1761537609604,2.1424741,1154.7,1152.0,0.56337519]
[1761537609806,2.1424741,1154.7,1152.1,0.56337519]
[1761537610105,2.1424741,1154.7,1152.2,0.56337519]
[1761537610307,2.1424741,1154.7,1151.9,1.87300533]
[1761537610602,2.29340408,1154.8,1152.0,0.56297226]
[1761537610807,2.29340408,1154.8,1152.1,0.56297226]
[1761537611004,2.29340408,1154.8,1152.2,0.56297226]
[1761537611306,0.15092998,1154.8,1152.3,0.56296231]
[1761537611608,0.15092998,1154.8,1152.4,0.56296231]
[1761537611805,0.15092998,1154.8,1152.5,0.56296231]
[1761537612007,0.15092998,1154.8,1151.9,1.229]
[1761537612204,0.15092998,1154.8,1152.1,0.64400533]
[1761537612407,0.15092998,1154.8,1152.2,0.5625331]
[1761537612605,0.15092998,1154.8,1152.1,0.64400533]
[1761537612606,0.15092998,1154.8,1152.3,0.5625331]
[1761537612808,0.15092998,1154.8,1152.4,0.5625331]
[1761537613009,0.15092998,1154.8,1152.5,0.5625331]
[1761537613211,0.15092998,1154.8,1152.6,0.5625331]
[1761537613412,0.15092998,1154.8,1152.7,0.5625331]
[1761537613609,0.15092998,1154.8,1152.1,0.64400533]
[1761537613908,0.15092998,1154.8,1152.2,0.5615574]
[1761537614109,0.15092998,1154.8,1152.3,0.5615574]
[1761537614310,0.15092998,1154.8,1152.4,0.5615574]
[1761537614514,0.15092998,1154.8,1152.0,0.64400533]
[1761537614715,0.15092998,1154.8,1152.1,0.56135733]
[1761537614910,0.15092998,1154.8,1152.2,0.56135733]
[1761537615111,0.15092998,1154.8,1152.3,0.56135733]
[1761537615315,0.15092998,1154.8,1152.4,0.56135733]
[1761537615619,0.15092998,1154.8,1152.0,0.64400533]
[1761537615819,0.15092998,1154.8,1152.4,0.64400533]
[1761537616020,0.15092998,1154.8,1152.5,0.56111581]
[1761537616315,0.15092998,1154.8,1152.6,0.56111581]
[1761537616515,0.15092998,1154.8,1152.4,0.64400533]
[1761537616516,0.15092998,1154.8,1152.7,0.56111581]
[1761537616715,0.15092998,1154.8,1152.8,0.56111581]
[1761537616915,0.15092998,1154.8,1152.4,0.64400533]
[1761537617114,0.15092998,1154.8,1152.5,0.60623015]
[1761537617417,0.15092998,1154.8,1152.6,0.60623015]
[1761537617619,0.15092998,1154.8,1152.7,0.60623015]
[1761537617817,0.15092998,1154.8,1152.8,0.60623015]
[1761537618119,0.15092998,1154.8,1152.4,0.64400533]
[1761537618319,0.15092998,1154.8,1152.5,1.25018533]
[1761537618619,0.15092998,1154.8,1152.6,0.60618]
[1761537618916,0.15092998,1154.8,1152.7,0.60618]
[1761537619216,0.15092998,1154.8,1152.8,0.60618]
[1761537619518,0.15092998,1154.8,1152.5,0.64400533]
[1761537619720,0.15092998,1154.8,1152.6,2.4998651]
[1761537620020,0.15092998,1154.8,1152.7,0.6058651]
[1761537620220,0.15092998,1154.8,1152.8,0.6058651]
[1761537620519,0.15092998,1154.8,1152.6,1.894]
[1761537620717,0.15092998,1154.8,1152.7,0.60576435]
[1761537620917,0.15092998,1154.8,1152.8,0.60576435]
[1761537621221,0.15092998,1154.8,1152.6,1.894]
[1761537621517,0.15092998,1154.8,1152.7,0.60595147]
[1761537621718,0.15092998,1154.8,1152.8,0.60595147]
[1761537621916,0.15092998,1154.8,1152.6,1.894]
[1761537622119,0.15092998,1154.8,1152.7,0.60243762]
[1761537622322,0.15092998,1154.8,1152.8,0.60243762]
[1761537622519,0.15092998,1154.8,1152.6,1.894]
[1761537622724,0.15092998,1154.8,1152.7,0.60238438]
[1761537622923,0.15092998,1154.8,1152.8,0.60238438]
[1761537623123,0.15092998,1154.8,1152.6,1.894]
[1761537623324,0.15092998,1154.8,1152.7,0.60245302]
[1761537623623,0.15092998,1154.8,1152.8,0.60245302]
[1761537623820,0.15092998,1154.8,1152.6,1.894]
[1761537624125,0.15092998,1154.8,1152.7,0.60235825]
[1761537624327,0.15092998,1154.8,1152.8,0.60235825]
[1761537624523,0.15092998,1154.8,1152.9,0.60233763]
[1761537624722,0.15092998,1154.8,1152.6,1.894]
[1761537625026,0.15092998,1154.8,1152.7,0.60231337]
[1761537625226,0.15092998,1154.8,1152.8,0.60231337]
[1761537625426,0.15092998,1154.8,1152.9,0.60231337]
[1761537625627,0.15092998,1154.8,1152.6,1.894]
[1761537625827,0.15092998,1154.8,1152.7,0.60233036]
[1761537626027,0.15092998,1154.8,1152.8,0.60233036]
[1761537626226,0.15092998,1154.8,1152.6,1.894]
[1761537626523,0.15092998,1154.8,1152.7,0.60227307]
[1761537626722,0.15092998,1154.8,1152.8,0.60227307]
[1761537627027,0.15092998,1154.8,1152.6,1.894]
[1761537627224,0.15092998,1154.8,1152.7,0.60226961]
[1761537627424,0.15092998,1154.8,1152.8,0.60226961]
[1761537627627,0.15092998,1154.8,1152.9,0.60226961]
[1761537627826,0.15092998,1154.8,1152.6,1.894]
[1761537628025,0.15092998,1154.8,1152.7,0.60222501]
[1761537628228,0.15092998,1154.8,1152.8,0.60222501]
[1761537628426,0.15092998,1154.8,1152.6,1.894]
[1761537628626,0.15092998,1154.8,1152.7,0.60219661]
[1761537628826,0.15092998,1154.8,1152.8,0.60219661]
[1761537629024,0.15092998,1154.8,1152.6,1.894]
[1761537629229,0.15092998,1154.8,1152.7,0.60219661]
[1761537629429,0.15092998,1154.8,1152.8,0.60219661]
[1761537629628,0.15092998,1154.8,1152.6,1.894]
[1761537629829,0.15092998,1154.8,1152.7,0.59728816]
[1761537630024,0.15092998,1154.8,1152.8,0.59728816]
[1761537630229,0.15092998,1154.8,1152.6,1.894]
[1761537630426,0.15092998,1154.8,1152.7,0.59730022]
[1761537630725,0.15092998,1154.8,1152.6,1.894]
[1761537630929,0.15092998,1154.8,1152.7,0.59730022]
[1761537631130,0.15092998,1154.8,1152.6,1.894]
[1761537631327,0.15092998,1154.8,1152.7,0.59735309]
[1761537631525,0.15092998,1154.8,1152.6,1.894]
[1761537631731,0.15092998,1154.8,1152.7,0.59732571]
[1761537632031,0.15092998,1154.8,1152.6,1.894]
[1761537646143,2.1424741,1155.7,1152.6,1.894]
[1761537646440,0.15092932,1154.3,1152.6,1.894]
[1761537646841,2.1424741,1155.8,1152.6,1.894]
[1761537647146,0.15093456,1153.9,1152.6,1.894]
[1761537647444,2.1424741,1155.8,1152.6,1.894]
[1761537647645,0.15093129,1153.6,1152.6,1.894]
[1761537647842,2.1424741,1155.8,1152.6,1.894]
[1761537648241,0.15093129,1153.4,1152.6,1.894]
[1761537648442,2.1424741,1155.9,1152.6,1.894]
[1761537648644,0.15093129,1153.3,1152.6,1.894]
[1761537649140,2.1424741,1155.9,1152.6,1.894]
[1761537649341,0.15092801,1153.2,1152.6,1.894]
[1761537649541,2.1424741,1155.6,1152.6,1.894]
[1761537649745,0.15092801,1153.2,1152.6,1.894]
[1761537650047,2.1424741,1155.6,1152.6,1.894]
[1761537650342,0.15093783,1153.2,1152.6,1.894]
[1761537650645,2.1424741,1155.6,1152.6,1.894]
[1761537650947,0.15093783,1153.2,1152.6,1.894]
[1761537651143,2.1424741,1155.6,1152.6,1.894]
[1761537651447,0.15093783,1153.2,1152.6,1.894]
[1761537651747,2.1424741,1155.6,1152.6,1.894]
[1761537651944,0.15093489,1153.3,1152.6,1.894]
[1761537652347,2.1424741,1155.6,1152.6,1.894]
[1761537652646,0.15092834,1153.4,1152.6,1.894]
[1761537652843,2.1424741,1155.0,1152.6,1.894]
[1761537653047,0.15094372,1153.4,1152.6,1.894]
[1761537653345,2.1424741,1155.0,1152.6,1.894]
[1761537653646,0.15094372,1153.4,1152.6,1.894]
[1761537653845,2.1424741,1155.0,1152.6,1.894]
[1761537654342,0.15094372,1153.4,1152.6,1.894]
[1761537654546,2.1424741,1155.0,1152.6,1.894]
[1761537654745,0.15094372,1154.5,1152.6,1.894]
[1761537659047,0.15094372,1154.5,1152.7,1.781]
[1761537666454,0.15094372,1154.5,1152.8,1.525]
[1761537670857,2.29341782,1154.5,1152.8,1.525]
[1761537671861,2.1424741,1154.4,1152.8,1.525]
[1761537672756,2.1424741,1154.3,1152.8,1.525]
[1761537675961,2.29341782,1154.5,1152.8,1.525]
[1761537676362,0.15094372,1154.5,1152.8,1.525]
[1761537683074,2.1424741,1154.4,1152.8,1.525]
[1761537684777,2.1424741,1154.3,1152.8,1.525]
[1761537686478,2.1424741,1154.2,1152.8,1.525]
[1761537687377,0.15094372,1154.5,1152.8,1.525]
[1761537688776,2.1424741,1153.6,1152.8,1.525]
[1761537689177,2.1424741,1153.6,1152.7,0.7526215]
[1761537689375,2.1424741,1153.3,1152.7,0.7526215]
[1761537690082,2.1424741,1153.4,1152.7,0.7526215]
[1761537690480,2.9994637,1153.6,1152.7,0.7526215]
[1761537690481,2.1424741,1153.5,1152.7,0.7526215]
[1761537690982,2.1424741,1153.4,1152.7,0.7526215]
[1761537692382,2.1424741,1153.5,1152.7,0.7526215]
[1761537693482,2.1424741,1153.6,1152.7,0.7526215]
[1761537694183,2.9994637,1154.0,1151.4,0.561]
[1761537694883,2.1424741,1154.2,1151.4,0.561]
[1761537695178,2.1424741,1154.0,1151.4,0.561]
[1761537695781,2.1424741,1154.1,1151.4,0.561]
[1761537696681,2.1424741,1153.6,1151.4,0.561]
[1761537696980,0.15114827,1153.5,1151.4,0.561]
[1761537700284,2.1424741,1153.3,1148.7,0.79522585]
[1761537700482,2.1424741,1153.3,1148.8,0.55851152]
[1761537700682,2.1424741,1153.1,1148.9,2.20551152]
[1761537700883,2.1424741,1153.1,1149.0,0.55851152]
[1761537701183,2.1424741,1153.1,1149.1,0.55851152]
[1761537701386,0.15114827,1153.5,1148.9,1.647]
[1761537701586,0.15114827,1153.5,1149.0,0.55741161]
[1761537701786,0.15114827,1153.5,1148.9,1.647]
[1761537702087,0.15114827,1153.5,1149.0,0.55747019]
[1761537702286,0.15114827,1153.5,1148.9,1.647]
[1761537702483,0.15114827,1153.5,1149.0,0.55642976]
[1761537702786,0.15114827,1153.5,1149.1,0.561]
[1761537707796,2.1424741,1153.1,1149.1,0.561]
[1761537708392,3.15061197,1153.5,1149.1,0.561]
[1761537708796,0.15114827,1153.5,1149.1,0.561]
[1761537721910,0.15114827,1153.5,1148.9,1.647]
[1761537722614,2.29362237,1153.5,1148.9,1.647]
[1761537723113,0.15114827,1153.5,1148.9,1.647]
[1761537723615,0.15114827,1153.5,1149.0,0.558]
[1761537736825,0.15114827,1153.5,1148.9,1.647]
[1761537737823,0.15114827,1153.5,1148.2,0.15128692]
[1761537739021,0.15114827,1153.5,1148.3,0.556]
[1761537741426,0.15114827,1153.5,1148.4,1.765]
[1761537742429,2.29362237,1153.5,1148.4,1.765]
[1761537743429,2.1424741,1153.4,1148.4,1.765]
[1761537743930,2.1424741,1153.2,1148.4,1.765]
[1761537744531,2.1424741,1153.1,1148.4,1.765]
[1761537745229,2.1424741,1153.1,1148.5,0.55515235]
[1761537745428,2.1424741,1153.1,1148.4,1.765]
[1761537745728,2.1424741,1152.7,1148.5,0.55515256]
[1761537745928,2.1424741,1152.7,1148.4,1.765]
[1761537746132,2.1424741,1152.9,1148.5,0.55625539]
[1761537746331,2.1424741,1152.9,1148.4,1.765]
[1761537746528,2.1424741,1152.6,1148.5,0.55630992]
[1761537746726,2.1424741,1152.6,1148.6,0.55630992]
[1761537746929,2.1424741,1152.6,1148.4,1.765]
[1761537747129,2.1424741,1152.6,1148.5,0.55628674]
[1761537747333,2.1424741,1152.6,1148.6,0.55628674]
[1761537747534,2.1424741,1152.6,1148.4,1.765]
[1761537747732,2.1424741,1152.4,1148.5,0.55705827]
[1761537748031,2.1424741,1152.4,1148.6,0.55705827]
[1761537748232,2.1424741,1152.6,1148.7,0.55791835]
[1761537748432,2.1424741,1152.6,1148.4,1.765]
[1761537748635,5.1419378,1153.0,1148.4,1.765]
[1761537748835,5.1419378,1153.0,1148.5,0.55803415]
[1761537749034,5.1419378,1153.0,1148.4,1.765]
[1761537749232,2.1424741,1153.2,1148.5,0.55803437]
[1761537749433,2.1424741,1153.2,1148.4,1.765]
[1761537749636,2.1424741,1153.1,1148.5,0.55855426]
[1761537749834,2.1424741,1153.1,1148.4,1.765]
[1761537750236,2.1424741,1152.1,1148.5,0.55915701]
[1761537750434,2.1424741,1152.1,1148.4,1.765]
[1761537750637,2.1424741,1152.1,1148.5,0.55916861]
[1761537750936,2.1424741,1152.3,1148.4,1.765]
[1761537751136,2.1424741,1152.3,1148.5,0.55916882]
[1761537751335,2.1424741,1152.1,1148.4,1.765]
[1761537751534,2.1424741,1152.1,1148.5,0.55989002]
[1761537751833,2.1424741,1151.6,1148.4,1.765]
[1761537752337,2.1424741,1151.5,1148.4,1.765]
[1761537753334,2.1424741,1151.3,1148.3,0.556]
[1761537753636,2.1424741,1151.3,1148.4,0.56173365]